fUSD/lending_fUSD_20250404
["ID","MTS","AMOUNT","RATE_DAILY","PERIOD"]
[357154391,1743803444538,-500.0,0.00049863,120]
[357154392,1743803444547,-500.0,0.00049863,120]
[357154393,1743803444560,-500.0,0.00049863,120]
[357154394,1743803444571,-1329.11,0.00049863,10]
[357154395,1743803444581,-500.0,0.00049863,30]
[357154396,1743803444590,-2000.0,0.00049863,2]
[357154397,1743803444599,-500.0,0.00049863,120]
[357154398,1743803444610,-500.0,0.00049863,120]
[357154399,1743803444619,-500.0,0.00049863,120]
[357154400,1743803444629,-500.0,0.00049863,120]
[357154401,1743803444639,-2296.64,0.00049863,2]
[357154402,1743803444648,-736.26,0.00049863,120]
[357154403,1743803444658,-500.0,0.00049863,120]
[357154404,1743803444668,-678.96,0.00049863,120]
[357154405,1743803444786,-500.0,0.00049863,120]
[357154406,1743803444796,-500.0,0.00049863,120]
[357154407,1743803444806,-500.0,0.00049863,120]
[357154408,1743803444816,-500.0,0.00049863,120]
[357154409,1743803444825,-596.29016959,0.00049863,120]
[357154410,1743803444834,-500.0,0.00049863,120]
[357154411,1743803444843,-596.52,0.00049863,120]
[357154412,1743803444853,-150.0,0.00049867,30]
[357154413,1743803444862,-150.0,0.00049868,7]
[357154414,1743803444871,-150.0,0.00049871,7]
[357154415,1743803444880,-150.0,0.00049873,7]
[357154416,1743803444889,-150.0,0.00049877,7]
[357154417,1743803444898,-162.70196803,0.0004988,26]
[357154418,1743803444907,-150.0,0.00049889,7]
[357154419,1743803444916,-150.0,0.00049897,7]
[357154420,1743803444926,-150.0,0.00049897,7]
[357154421,1743803444935,-244.20908264,0.000499,38]
[357154422,1743803444945,-236.65240344,0.000499,2]
[357154423,1743803444954,-150.0,0.000499,7]
[357154424,1743803444963,-212.10784808,0.000499,10]
[357154425,1743803444972,-12890.5122198,0.00049903,4]
[357154426,1743803444981,-7197.2303814,0.0004991,4]
[357154427,1743803444991,-150.0,0.00049925,7]
[357154428,1743803445000,-1000.0,0.00049928,30]
[357154429,1743803445009,-174.79938507,0.00049929,2]
[357154430,1743803445020,-2347.08326735,0.00049929,2]
[357154431,1743803445029,-500.0,0.00049933,30]
[357154432,1743803445038,-298.77884747,0.00049949,7]
[357154433,1743803445048,-500.0,0.00049951,30]
[357154434,1743803445057,-500.0,0.00049952,120]
[357154435,1743803445066,-500.0,0.00049952,120]
[357154436,1743803445075,-500.0,0.00049952,120]
[357154437,1743803445085,-200.0,0.00049952,120]
[357154438,1743803445095,-2498.0,0.0004997,120]
[357154439,1743803445104,-38671.5366593,0.0004997,4]
[357154440,1743803445113,-43183.3822884,0.0004997,4]
[357154441,1743803445122,-380.1005173,0.00049973,10]
[357154442,1743803445133,-500.9227074,0.00049973,10]
[357154443,1743803445142,-500.0,0.00049973,10]
[357154444,1743803445151,-152.93536989,0.00049973,10]
[357154445,1743803445160,-164.49653638,0.00049973,10]
[357154446,1743803445170,-12890.5122198,0.00049975,4]
[357154447,1743803445179,-7197.2303814,0.00049975,4]
[357154448,1743803445188,-150.0,0.00049977,7]
[357154449,1743803445197,-1000.0,0.00049979,30]
[357154450,1743803445207,-2498.0,0.0004998,120]
[357154451,1743803445216,-51562.0488791,0.0004998,4]
[357154452,1743803445225,-50380.6126698,0.0004998,4]
[357154453,1743803445235,-11366.57929889,0.0004998,30]
[357154454,1743803445244,-150.0,0.00049981,7]
[357154455,1743803445253,-150.0,0.00049983,7]
[357154456,1743803445262,-150.0,0.00049983,7]
[357154457,1743803445272,-150.0,0.00049984,30]
[357154458,1743803445284,-12890.5122198,0.00049985,4]
[357154459,1743803445293,-14394.4607628,0.00049985,4]
[357154460,1743803445302,-150.0,0.00049986,7]
[357154461,1743803445311,-500.0,0.00049989,120]
[357154462,1743803445320,-500.0,0.00049989,120]
[357154463,1743803445330,-500.0,0.00049989,120]
[357154464,1743803445340,-1028.371543,0.0004999,30]
[357154465,1743803445349,-2498.0,0.0004999,120]
[357154466,1743803445358,-12890.5122198,0.0004999,4]
[357154467,1743803445367,-136747.377247,0.0004999,4]
[357154468,1743803445377,-1000.0,0.0004999,2]
[357154469,1743803445386,-25128.82738975,0.00049995,15]
[357154470,1743803445395,-1000.0,0.00049999,120]
[357154471,1743803445405,-500.0,0.00049999,120]
[357154472,1743803445414,-359.43493567,0.00049999,120]
[357154473,1743803445424,-500.0,0.0005,2]
[357154474,1743803445433,-1000000.0,0.0005,120]
[357154475,1743803445443,-47501.1726,0.0005,2]
[357154476,1743803445453,-2010.44,0.0005,14]
[357154477,1743803445462,-1411.2224,0.0005,2]
[357154478,1743803445471,-475.9709,0.0005,2]
[357154479,1743803445480,-661.97244238,0.0005,120]
[357154480,1743803445488,-243.95494408,0.0005,120]
[357154481,1743803445497,-907082.73937564,0.0005,120]
[357154482,1743803445656,-845.01,0.00043754,2]
[357154483,1743803445904,-272.99,0.00043754,2]
[357154484,1743803445914,-1118.0,0.00046754,2]
[357154485,1743803445923,-532.78,0.00049214,120]
[357154486,1743803445932,-153.0,0.00049315,90]
[357154487,1743803445942,-153.0,0.00049315,90]
[357154488,1743803445951,-153.0,0.00049315,90]
[357154489,1743803445960,-153.0,0.00049315,90]
[357154490,1743803445969,-153.0,0.00049315,90]
[357154491,1743803445978,-153.0,0.00049315,90]
[357154492,1743803445987,-153.0,0.00049315,90]
[357154493,1743803445996,-153.0,0.00049315,90]
[357154494,1743803446006,-153.0,0.00049315,90]
[357154495,1743803446016,-153.0,0.00049315,90]
[357154496,1743803446025,-153.0,0.00049315,90]
[357154497,1743803446034,-153.0,0.00049315,90]
[357154498,1743803446043,-153.0,0.00049315,90]
[357154499,1743803446052,-153.0,0.00049315,90]
[357154500,1743803446061,-153.0,0.00049315,90]
[357154501,1743803446072,-1979.18829682,0.00049671,15]
[357154502,1743803446082,-764.21746112,0.00049736,15]
[357154503,1743803446091,-942.56446073,0.0005,120]
[357154504,1743803446122,-153.0,0.00049315,90]
[357154505,1743803446131,-959.03881448,0.0005,120]
[357154506,1743803446143,-2851.51001549,0.0005,120]
[357154512,1743803446581,-1432.94039243,0.0005,120]
[357154694,1743804350094,-289.17273954,0.000369,2]
[357154695,1743804350116,-200.0,0.00036999,30]
[357154696,1743804350136,-250.0,0.00037,2]
[357154697,1743804350157,-1576.18726524,0.00037,2]
[357154698,1743804357111,-1457.49645749,0.00037,2]
[357154699,1743804435152,-2599.94003239,0.00037,2]
[357154700,1743804443094,-795.35845283,0.00037,2]
[357154701,1743804448132,-166.77683303,0.00037,2]
[357154702,1743804452088,-6188.11988312,0.00037,2]
[357154703,1743804560094,-22413.1210759,0.00037,2]
[357154704,1743804560116,-578.34547906,0.000377,2]
[357154705,1743804560139,-852.9795666,0.000378,107]
[357154706,1743804560160,-300.0,0.00039,2]
[357154707,1743804560180,-150.0,0.000399,120]
[357154708,1743804560200,-150.0,0.0004,2]
[357154709,1743804560220,-250.0,0.0004059,2]
[357154710,1743804560239,-250.0,0.000407,2]
[357154711,1743804560259,-250.0,0.000407,2]
[357154712,1743804560280,-852.9795666,0.000409,120]
[357154713,1743804560300,-350.0,0.00041,2]
[357154714,1743804560319,-999.99,0.00041,2]
[357154715,1743804560338,-150.99,0.00041,2]
[357154716,1743804560358,-150.99,0.00041,30]
[357154717,1743804560379,-469.888,0.000419,62]
[357154718,1743804560399,-400.0,0.00043,2]
[357154719,1743804560421,-2722.85600415,0.00043215,2]
[357154720,1743804631969,-207.31,0.00026849,2]
[357154721,1743804631979,-207.31,0.00032646,2]
[357154722,1743804631989,-207.31,0.00038443,2]
[357154723,1743804631998,-2197.076,0.00043076,2]
[357154724,1743804632008,-151.0,0.00043076,2]
[357154725,1743804632017,-851.0,0.00043076,2]
[357154726,1743804632027,-4593.0485072,0.00043215,2]
[357154727,1743804632039,-152.66,0.000436,36]
[357154728,1743804632049,-852.9795666,0.00044,120]
[357154729,1743804632058,-288.0376774,0.00044237,2]
[357154730,1743804632068,-207.31,0.00044239,2]
[357154731,1743804632077,-150.0,0.00045,2]
[357154732,1743804632087,-450.0,0.00045,2]
[357154733,1743804632096,-346.05755241,0.00045239,2]
[357154734,1743804632107,-653.94244759,0.00045239,2]
[357154735,1743804632117,-1398.74,0.00045349,2]
[357154736,1743804632126,-903.55,0.00045668,2]
[357154737,1743804632135,-187.01,0.00045739,2]
[357154738,1743804632144,-550.49290799,0.00046032,2]
[357154739,1743804632154,-151.0,0.00046076,2]
[357154740,1743804632163,-466.213,0.00046076,2]
[357154741,1743804632172,-167.97,0.000464,120]
[357154742,1743804632182,-152.66,0.000464,39]
[357154743,1743804632191,-152.66,0.000464,39]
[357154744,1743804632200,-200.0,0.0004658,2]
[357154745,1743804632210,-200.0,0.0004659,2]
[357154746,1743804632219,-5149.38952912,0.00046678,2]
[357154747,1743804632230,-868.60322911,0.00046678,2]
[357154748,1743804632418,-2553.00922789,0.00046678,2]
[357154818,1743804637965,-464.30553221,0.00046678,2]
[357154819,1743804638075,-14864.69248167,0.00046678,2]
[357154820,1743804638085,-250.0,0.00046703,120]
[357154821,1743804638094,-500.0,0.00047,2]
[357154822,1743804638103,-151.49,0.00047012,2]
[357154823,1743804638113,-852.9795666,0.000471,120]
[357154824,1743804638123,-150.0,0.00047338,7]
[357154825,1743804638133,-3530.54,0.0004736,2]
[357154826,1743804638143,-633.57750503,0.00047381,2]
[357154827,1743804638153,-10026.0,0.00047509,2]
[357154828,1743804638164,-250.0,0.00047537,2]
[357154829,1743804638174,-483.22132469,0.0004777,2]
[357154830,1743804638183,-1000.0,0.000479,2]
[357154832,1743804638192,-903.55,0.00047932,2]
[357154834,1743804638201,-156.38,0.00048056,120]
[357154835,1743804638212,-505.08,0.00048555,2]
[357154837,1743804638221,-539.27423743,0.000486,2]
[357154839,1743804638230,-539.27423741,0.00048645,2]
[357154841,1743804638239,-253.2,0.00048658,30]
[357154843,1743804638248,-800.39,0.00048658,30]
[357154845,1743804638257,-171.05371082,0.0004869,28]
[357154847,1743804638266,-1583.35063753,0.0004869,15]
[357154849,1743804638275,-539.27423741,0.0004869,2]
[357154851,1743804638284,-579.55669746,0.000487,20]
[357154853,1743804638293,-68460.5797116,0.000487,120]
[357154855,1743804638302,-2498.0,0.0004877,120]
[357154857,1743804638311,-2033.7272697,0.00048773,4]
[357154859,1743804638320,-2498.0,0.0004878,120]
[357154861,1743804638329,-150.67,0.0004878,2]
[357154863,1743804638338,-1929.68,0.0004878,2]
[357154865,1743804638347,-1929.68,0.0004878,2]
[357154867,1743804638356,-306610.040656,0.0004879,4]
[357154869,1743804638366,-137177.58715946,0.0004879,4]
[357154871,1743804638377,-422.74999925,0.0004879,4]
[357154874,1743804638388,-3636.88392001,0.0004879,4]
[357154960,1743804639213,-162.70196803,0.00048732,24]
[357154964,1743804639237,-137.29803197,0.0004879,4]
[357155079,1743804640414,-1262.8243768,0.0004879,4]
[357155080,1743804640472,-145251.87176851,0.0004879,4]
[357155082,1743804640482,-2498.0,0.0004879,120]
[357155084,1743804640491,-150.67,0.0004879,2]
[357155086,1743804640500,-150.67,0.0004879,2]
[357155088,1743804640509,-150.67,0.0004879,2]
[357155090,1743804640518,-150.67,0.0004879,2]
[357155091,1743804640527,-421.86540039,0.00048799,120]
[357155093,1743804640536,-500.0,0.00048799,120]
[357155095,1743804640546,-500.0,0.00048799,120]
[357155097,1743804640555,-500.0,0.00048799,120]
[357155099,1743804640564,-1438.5,0.00048799,120]
[357155101,1743804640573,-500.0,0.00048799,120]
[357155103,1743804640581,-1567.32,0.00048799,120]
[357155105,1743804640591,-611.34098416,0.00048799,120]
[357155106,1743804640599,-672.54,0.00048799,120]
[357155108,1743804640608,-500.0,0.00048799,2]
[357155110,1743804640617,-500.0,0.00048799,120]
[357155112,1743804640626,-500.0,0.00048799,120]
[357155114,1743804640635,-500.0,0.00048799,2]
[357155116,1743804640644,-768.3,0.00048799,120]
[357155118,1743804640653,-500.0,0.00048799,120]
[357155120,1743804640662,-500.0,0.00048799,2]
[357155122,1743804640671,-500.0,0.00048799,120]
[357155124,1743804640681,-500.0,0.00048799,120]
[357155125,1743804640690,-1400000.0,0.000488,60]
[357155127,1743804640699,-150.0,0.00048832,2]
[357155129,1743804640709,-1583.35063745,0.00048836,15]
[357155130,1743804640718,-250.0,0.00048889,2]
[357155131,1743804640727,-1583.35063745,0.00048981,15]
[357155132,1743804640737,-1145.87609995,0.00049,30]
[357155133,1743804640746,-550.0,0.00049,2]
[357155134,1743804640756,-475.9709,0.00049014,2]
[357155135,1743804640765,-19061.0312,0.00049014,2]
[357155136,1743804640774,-1000.0,0.00049054,2]
[357155137,1743804640784,-1438.5,0.00049073,120]
[357155138,1743804640794,-1567.32,0.00049073,120]
[357155139,1743804640803,-672.54,0.00049073,120]
[357155140,1743804640812,-500.0,0.00049073,2]
[357155141,1743804640822,-500.0,0.00049073,120]
[357155142,1743804640833,-500.0,0.00049073,120]
[357155143,1743804640843,-500.0,0.00049073,2]
[357155144,1743804640852,-768.3,0.00049073,120]
[357155145,1743804640862,-500.0,0.00049073,120]
[357155146,1743804640872,-500.0,0.00049073,120]
[357155147,1743804640882,-618.43981225,0.00049073,2]
[357155148,1743804640891,-151.0,0.00049076,2]
[357155149,1743804640901,-1465.4987,0.00049114,2]
[357155150,1743804640910,-173.6262,0.00049114,2]
[357155151,1743804640919,-75323.1705,0.00049114,2]
[357155152,1743804640929,-1411.2224,0.00049114,2]
[357155153,1743804640938,-500.0,0.00049114,2]
[357155154,1743804640948,-635.0224,0.00049114,2]
[357155155,1743804640958,-2500.0,0.00049114,30]
[357155156,1743804640971,-1583.35063745,0.00049127,15]
[357155157,1743804640981,-10495.9242,0.00049154,2]
[357155158,1743804640990,-1781.6592,0.00049154,2]
[357155159,1743804641000,-960.4836,0.00049154,2]
[357155160,1743804641010,-2026.1297,0.00049154,2]
[357155161,1743804641020,-2617.72,0.0004916,30]
[357155162,1743804641029,-1250.0,0.00049188,30]
[357155163,1743804641040,-152.66,0.000492,45]
[357155164,1743804641051,-152.66,0.000492,45]
[357155165,1743804641060,-47501.1726,0.00049214,2]
[357155166,1743804641070,-582.88,0.00049214,120]
[357155167,1743804641080,-500.0,0.00049214,120]
[357155168,1743804641089,-1818.17,0.00049214,2]
[357155169,1743804641098,-537.51,0.00049214,120]
[357155170,1743804641107,-500.0,0.00049214,120]
[357155171,1743804641116,-500.0,0.00049214,120]
[357155172,1743804641126,-500.0,0.00049214,120]
[357155173,1743804641136,-500.0,0.00049214,120]
[357155174,1743804641145,-500.0,0.00049214,120]
[357155175,1743804641154,-500.0,0.00049214,120]
[357155176,1743804641164,-500.0,0.00049214,120]
[357155177,1743804641173,-500.0,0.00049214,120]
[357155178,1743804641183,-522.8,0.00049214,120]
[357155179,1743804641192,-500.0,0.00049214,120]
[357155180,1743804641202,-500.0,0.00049214,120]
[357155181,1743804641211,-500.0,0.00049214,120]
[357155182,1743804641220,-611.37396895,0.00049215,15]
[357155183,1743804641230,-3675.52,0.00049221,30]
[357155184,1743804641240,-2500.0,0.00049231,30]
[357155185,1743804641249,-2500.0,0.00049254,30]
[357155186,1743804641258,-1583.35063745,0.00049272,15]
[357155187,1743804641268,-500.0,0.00049281,120]
[357155188,1743804641277,-500.0,0.00049281,120]
[357155189,1743804641286,-500.0,0.00049281,120]
[357155190,1743804641295,-500.0,0.00049281,120]
[357155191,1743804641304,-500.0,0.00049281,120]
[357155192,1743804641314,-500.0,0.00049281,120]
[357155193,1743804641324,-10853.56,0.00049281,2]
[357155194,1743804641333,-500.0,0.00049281,120]
[357155195,1743804641343,-500.0,0.00049281,120]
[357155196,1743804641352,-500.0,0.00049281,120]
[357155197,1743804641362,-500.0,0.00049281,120]
[357155198,1743804641371,-500.0,0.00049281,120]
[357155199,1743804641380,-500.0,0.00049282,120]
[357155200,1743804641390,-500.0,0.00049282,120]
[357155201,1743804641399,-500.0,0.00049282,120]
[357155202,1743804641408,-500.0,0.00049282,120]
[357155203,1743804641417,-500.0,0.00049282,120]
[357155204,1743804641427,-500.0,0.00049282,120]
[357155205,1743804641436,-437.72,0.00049282,120]
[357155206,1743804641445,-500.0,0.00049282,120]
[357155207,1743804641455,-500.0,0.00049282,120]
[357155208,1743804641465,-500.0,0.00049282,120]
[357155209,1743804641474,-500.0,0.00049282,120]
[357155210,1743804641484,-500.0,0.00049282,120]
[357155211,1743804641493,-500.0,0.00049282,120]
[357155212,1743804641502,-500.0,0.00049282,120]
[357155213,1743804641511,-500.0,0.00049282,120]
[357155214,1743804641521,-500.0,0.00049282,120]
[357155215,1743804641531,-500.0,0.00049282,120]
[357155216,1743804641540,-500.0,0.00049282,120]
[357155217,1743804641549,-500.0,0.00049282,120]
[357155218,1743804641558,-500.0,0.00049282,120]
[357155219,1743804641568,-500.0,0.00049282,120]
[357155220,1743804641577,-500.0,0.00049282,120]
[357155221,1743804641587,-500.0,0.00049282,120]
[357155222,1743804641596,-500.0,0.00049282,120]
[357155223,1743804641606,-500.0,0.00049282,120]
[357155224,1743804641615,-500.0,0.00049282,120]
[357155225,1743804641624,-500.0,0.00049282,120]
[357155226,1743804641634,-500.0,0.00049282,120]
[357155227,1743804641643,-500.0,0.00049282,120]
[357155228,1743804641653,-500.0,0.00049282,120]
[357155229,1743804641662,-500.0,0.00049282,120]
[357155230,1743804641671,-500.0,0.00049282,120]
[357155231,1743804641681,-500.0,0.00049282,120]
[357155232,1743804641690,-500.0,0.00049282,120]
[357155233,1743804641700,-500.0,0.00049282,120]
[357155234,1743804641709,-500.0,0.00049282,120]
[357155235,1743804641719,-500.0,0.00049282,120]
[357155236,1743804641728,-500.0,0.00049282,120]
[357155237,1743804641738,-500.0,0.00049282,120]
[357155238,1743804641747,-500.0,0.00049282,120]
[357155239,1743804641757,-500.0,0.00049282,120]
[357155240,1743804641766,-500.0,0.00049282,120]
[357155241,1743804641775,-500.0,0.00049282,120]
[357155242,1743804641784,-500.0,0.00049282,120]
[357155243,1743804641793,-500.0,0.00049282,120]
[357155244,1743804641803,-266.43,0.00049282,120]
[357155245,1743804641812,-500.0,0.00049282,120]
[357155246,1743804641822,-416.10948836,0.00049299,3]
[357155247,1743804641831,-524.60394143,0.00049299,120]
[357155248,1743804641842,-150.67,0.00049304,120]
[357155249,1743804641851,-611.3739689,0.00049313,15]
[357155250,1743804641860,-702.34,0.00049314,120]
[357155251,1743804641870,-500.0,0.00049314,120]
[357155252,1743804641879,-500.0,0.00049314,30]
[357155253,1743804641888,-500.0,0.00049314,120]
[357155254,1743804641898,-200.0,0.00049314,7]
[357155255,1743804641907,-259.92752531,0.00049314,120]
[357155256,1743804641916,-345.64470407,0.00049314,120]
[357155257,1743804641926,-500.0,0.00049314,120]
[357155258,1743804641935,-264.83196073,0.00049314,120]
[357155259,1743804641945,-500.0,0.00049314,120]
[357155260,1743804641954,-500.0,0.00049314,120]
[357155261,1743804641969,-500.0,0.00049314,120]
[357155262,1743804641979,-258.32510544,0.00049314,120]
[357155263,1743804641989,-500.0,0.00049314,120]
[357155264,1743804641998,-273.08290956,0.00049314,120]
[357155265,1743804642009,-1371.24,0.00049314,120]
[357155266,1743804642019,-500.0,0.00049314,120]
[357155267,1743804642028,-500.0,0.00049314,120]
[357155268,1743804642038,-240.89252329,0.00049314,120]
[357155269,1743804642048,-500.0,0.00049314,2]
[357155270,1743804642057,-500.0,0.00049314,10]
[357155271,1743804642066,-501.22758794,0.00049314,120]
[357155272,1743804642076,-500.0,0.00049314,120]
[357155273,1743804642085,-500.0,0.00049314,120]
[357155274,1743804642095,-623.26723545,0.00049314,120]
[357155275,1743804642105,-500.0,0.00049314,120]
[357155276,1743804642114,-626.18,0.00049314,120]
[357155277,1743804642124,-500.0,0.00049314,120]
[357155278,1743804642133,-500.0,0.00049314,12]
[357155279,1743804642142,-598.18,0.00049314,120]
[357155280,1743804642151,-500.0,0.00049314,120]
[357155281,1743804642161,-500.0,0.00049314,120]
[357155282,1743804642171,-500.0,0.00049314,120]
[357155283,1743804642180,-500.0,0.00049314,120]
[357155284,1743804642190,-500.0,0.00049314,120]
[357155285,1743804642199,-500.0,0.00049314,120]
[357155286,1743804642209,-1848.19,0.00049314,120]
[357155287,1743804642218,-606.27,0.00049314,120]
[357155288,1743804642228,-200.75845683,0.00049314,120]
[357155289,1743804642238,-500.0,0.00049314,120]
[357155290,1743804642247,-525.22,0.00049314,120]
[357155291,1743804642257,-500.0,0.00049314,120]
[357155292,1743804642267,-500.0,0.00049314,120]
[357155293,1743804642277,-500.0,0.00049314,120]
[357155294,1743804642287,-500.0,0.00049314,120]
[357155295,1743804642297,-500.0,0.00049314,100]
[357155296,1743804642307,-500.0,0.00049314,120]
[357155297,1743804642317,-215.69180743,0.00049314,120]
[357155298,1743804642326,-500.0,0.00049314,120]
[357155299,1743804642335,-563.34,0.00049314,120]
[357155300,1743804642345,-500.0,0.00049314,120]
[357155301,1743804642354,-345.64259546,0.00049314,120]
[357155302,1743804642364,-500.0,0.00049314,120]
[357155303,1743804642373,-500.0,0.00049314,120]
[357155304,1743804642383,-500.0,0.00049314,120]
[357155305,1743804642392,-617.47,0.00049314,120]
[357155306,1743804642401,-500.0,0.00049314,120]
[357155307,1743804642410,-500.0,0.00049314,120]
[357155308,1743804642420,-500.0,0.00049314,120]
[357155309,1743804642429,-500.0,0.00049314,120]
[357155310,1743804642439,-500.0,0.00049314,120]
[357155311,1743804642448,-500.0,0.00049314,120]
[357155312,1743804642457,-500.0,0.00049314,10]
[357155313,1743804642467,-500.0,0.00049314,120]
[357155314,1743804642476,-500.0,0.00049314,120]
[357155315,1743804642485,-500.0,0.00049314,120]
[357155316,1743804642495,-500.0,0.00049314,120]
[357155317,1743804642504,-500.0,0.00049314,120]
[357155318,1743804642513,-500.0,0.00049314,120]
[357155319,1743804642522,-500.0,0.00049314,120]
[357155320,1743804642531,-595.16401569,0.00049314,120]
[357155321,1743804642541,-500.0,0.00049314,120]
[357155322,1743804642550,-500.0,0.00049314,120]
[357155323,1743804642559,-500.0,0.00049314,120]
[357155324,1743804642569,-500.0,0.00049314,120]
[357155325,1743804642578,-500.0,0.00049314,120]
[357155326,1743804642588,-500.0,0.00049314,120]
[357155327,1743804642597,-500.0,0.00049314,120]
[357155328,1743804642606,-3958.51,0.00049314,7]
[357155329,1743804642616,-569.68,0.00049314,120]
[357155330,1743804642626,-951.61,0.00049314,120]
[357155331,1743804642635,-500.0,0.00049314,120]
[357155333,1743804642754,-500.0,0.00049314,120]
[357155334,1743804642765,-500.0,0.00049314,120]
[357155335,1743804642776,-500.0,0.00049314,120]
[357155336,1743804642785,-578.75664656,0.00049314,120]
[357155337,1743804642795,-783.54,0.00049314,120]
[357155338,1743804642804,-370.76122789,0.00049314,120]
[357155340,1743804642814,-1413.63,0.00049314,10]
[357155342,1743804642824,-1034.81,0.00049314,120]
[357155343,1743804642834,-592.04679332,0.00049314,120]
[357155345,1743804642845,-500.0,0.00049314,2]
[357155346,1743804642854,-500.0,0.00049314,120]
[357155348,1743804642863,-175.11929874,0.00049314,120]
[357155350,1743804642873,-609.54692479,0.00049314,120]
[357155351,1743804642882,-500.0,0.00049314,120]
[357155352,1743804642892,-4215.76,0.00049314,120]
[357155353,1743804642901,-500.0,0.00049314,120]
[357155354,1743804642910,-500.0,0.00049314,7]
[357155355,1743804642920,-500.0,0.00049314,120]
[357155356,1743804642929,-500.0,0.00049314,120]
[357155357,1743804642939,-500.0,0.00049314,120]
[357155358,1743804642949,-1199.51,0.00049314,120]
[357155359,1743804642962,-500.0,0.00049314,120]
[357155361,1743804642972,-500.0,0.00049314,120]
[357155363,1743804642981,-500.0,0.00049314,120]
[357155365,1743804642991,-500.0,0.00049314,120]
[357155366,1743804643000,-235.83748568,0.00049314,120]
[357155368,1743804643010,-500.0,0.00049314,120]
[357155369,1743804643020,-500.0,0.00049314,120]
[357155370,1743804643030,-500.0,0.00049314,16]
[357155371,1743804643040,-500.0,0.00049315,120]
[357155372,1743804643050,-464.335717,0.00049315,120]
[357155373,1743804643059,-464.335717,0.00049315,120]
[357155374,1743804643069,-464.335717,0.00049315,120]
[357155375,1743804643079,-153.755898,0.00049315,120]
[357155376,1743804643088,-154.939068,0.00049315,120]
[357155377,1743804643098,-795.42196271,0.00049315,120]
[357155378,1743804643108,-795.42196271,0.00049315,120]
[357155379,1743804643117,-795.42196271,0.00049315,120]
[357155380,1743804643126,-795.42196271,0.00049315,120]
[357155381,1743804643136,-795.42196271,0.00049315,120]
[357155382,1743804643146,-795.42196271,0.00049315,120]
[357155383,1743804643156,-795.42196271,0.00049315,120]
[357155384,1743804643165,-795.42196271,0.00049315,120]
[357155385,1743804643175,-795.42196271,0.00049315,120]
[357155386,1743804643185,-795.42196271,0.00049315,120]
[357155387,1743804643195,-795.42196271,0.00049315,120]
[357155388,1743804643204,-795.42196271,0.00049315,120]
[357155389,1743804643214,-795.42196271,0.00049315,120]
[357155390,1743804643223,-795.42196271,0.00049315,120]
[357155391,1743804643232,-795.42196271,0.00049315,120]
[357155392,1743804643242,-795.42196271,0.00049315,120]
[357155393,1743804643251,-795.42196271,0.00049315,120]
[357155394,1743804643260,-795.42196271,0.00049315,120]
[357155395,1743804643270,-660.72190147,0.00049315,120]
[357155396,1743804643279,-660.72190147,0.00049315,120]
[357155397,1743804643289,-660.72190147,0.00049315,120]
[357155398,1743804643298,-660.72190147,0.00049315,120]
[357155399,1743804643307,-795.42196271,0.00049315,120]
[357155400,1743804643316,-660.72190147,0.00049315,120]
[357155401,1743804643325,-660.72190147,0.00049315,120]
[357155402,1743804643334,-660.72190147,0.00049315,120]